fUSD/lending_fUSD_20251025
["ID","MTS","AMOUNT","RATE_DAILY","PERIOD"]
[392374261,1761407548561,-553.77785826,0.00039178,9]
[392374262,1761407548576,-1157.36547197,0.00039178,9]
[392374263,1761407548585,-942.70223025,0.00039178,9]
[392374264,1761407548595,-899.67455806,0.00039178,9]
[392374265,1761407548603,-416.07582477,0.00039178,9]
[392374266,1761407548612,-558.20417542,0.00039178,9]
[392374267,1761407548622,-657.20762823,0.00039178,9]
[392374268,1761407548631,-310.01528791,0.00039178,9]
[392374269,1761407548640,-1103.76764602,0.00039178,9]
[392374270,1761407548650,-587.01336187,0.00039178,9]
[392374271,1761407548659,-677.42645954,0.00039178,9]
[392374272,1761407548669,-602.07043751,0.00039178,9]
[392374273,1761407548678,-27349.66201334,0.00039178,9]
[392374274,1761407548688,-755.97465797,0.00039178,9]
[392374275,1761407548698,-3162.40064323,0.00039178,9]
[392374276,1761407548707,-541.76639411,0.00039178,9]
[392374277,1761407548717,-289.86430189,0.00039178,9]
[392374278,1761407548726,-568.61837907,0.00039178,9]
[392374279,1761407548739,-793.90235359,0.00039178,9]
[392374280,1761407548748,-612.62059066,0.00039178,9]
[392374281,1761407548757,-580.52347557,0.00039178,9]
[392374282,1761407548767,-512.22043538,0.00039178,9]
[392374283,1761407548777,-647.33024691,0.00039178,9]
[392374284,1761407548788,-601.35645039,0.00039178,9]
[392374285,1761407548797,-505.06349651,0.00039178,9]
[392374286,1761407548806,-2016.64405084,0.00039178,9]
[392374287,1761407548815,-544.29886996,0.00039178,9]
[392374288,1761407548824,-624.36690846,0.00039178,9]
[392374289,1761407548834,-191.91597331,0.00039178,9]
[392374290,1761407548843,-1578.57913062,0.00039178,9]
[392374291,1761407548854,-1038.26667237,0.00039178,9]
[392374292,1761407548864,-868.35738948,0.00039178,9]
[392374293,1761407548874,-917.79362345,0.00039178,9]
[392374294,1761407548884,-645.89899558,0.00039178,9]
[392374295,1761407548894,-890.98397423,0.00039178,9]
[392374296,1761407548903,-543.76245453,0.00039178,9]
[392374297,1761407548913,-621.13761356,0.00039178,9]
[392374298,1761407548923,-502.13775,0.00039178,9]
[392374299,1761407548933,-6416.05450672,0.00039178,9]
[392374300,1761407548942,-1885.51260567,0.00039178,9]
[392374301,1761407548952,-549.12522228,0.00039178,9]
[392374302,1761407548961,-367.09631025,0.00039178,9]
[392374303,1761407548970,-152.0,0.00039183,9]
[392374304,1761407548979,-15000.0,0.0003921,120]
[392374305,1761407548988,-15000.0,0.0003921,120]
[392374306,1761407548998,-28708.65,0.000393,14]
[392374307,1761407549007,-682.07,0.00039312,120]
[392374308,1761407549016,-500.0,0.00039315,30]
[392374309,1761407549025,-500.0,0.00039347,120]
[392374310,1761407549035,-1443.15557519,0.000394,120]
[392374311,1761407549045,-500.0,0.00039413,5]
[392374312,1761407549054,-150.0,0.00039419,2]
[392374313,1761407549063,-15000.0,0.0003942,120]
[392374314,1761407549072,-15000.0,0.0003942,120]
[392374315,1761407549082,-248.71531821,0.00039451,30]
[392374316,1761407549091,-1511.9,0.00039452,2]
[392374317,1761407549100,-158.02333789,0.00039452,30]
[392374318,1761407549110,-582.00340453,0.00039452,60]
[392374319,1761407549119,-300.0,0.0003947,2]
[392374320,1761407549128,-500.0,0.00039589,30]
[392374321,1761407549138,-15000.0,0.0003963,120]
[392374322,1761407549148,-15000.0,0.0003963,120]
[392374323,1761407549158,-177.76,0.00039654,2]
[392374324,1761407549168,-1200.0,0.00039689,7]
[392374325,1761407549177,-500.0,0.00039689,7]
[392374326,1761407549188,-10000.0,0.000397,120]
[392374327,1761407549198,-10000.0,0.000397,120]
[392374328,1761407549208,-9999.96,0.000397,120]
[392374329,1761407549218,-1511.9,0.00039726,2]
[392374330,1761407549227,-158.02333789,0.00039726,30]
[392374331,1761407549236,-158.67,0.00039733,2]
[392374332,1761407549245,-5904.0,0.000398,7]
[392374333,1761407549254,-2000000.0,0.000398,120]
[392374334,1761407549263,-15000.0,0.0003984,120]
[392374335,1761407549273,-15000.0,0.0003984,120]
[392374336,1761407549282,-500.0,0.00039863,30]
[392374337,1761407549292,-181.04145175,0.000399,120]
[392374338,1761407549301,-6000.0,0.000399,120]
[392374339,1761407549311,-16337.15669628,0.000399,2]
[392374340,1761407549320,-984.56775295,0.000399,2]
[392374341,1761407549329,-3161.68289756,0.000399,2]
[392374342,1761407549339,-667.30507365,0.000399,8]
[392374343,1761407549348,-571.21417138,0.000399,2]
[392374344,1761407549357,-12350.51825969,0.000399,2]
[392374345,1761407549367,-428.54456406,0.00039999,31]
[392374346,1761407549376,-446.1584234,0.00039999,7]
[392374347,1761407549384,-394.92525756,0.00039999,15]
[392374348,1761407549394,-398.85503835,0.00039999,31]
[392374349,1761407549403,-498.57754554,0.00039999,31]
[392374350,1761407549412,-428.5414114,0.00039999,31]
[392374351,1761407549421,-500.0,0.00039999,31]
[392374352,1761407549430,-500.0,0.00039999,31]
[392374353,1761407549439,-409.57720698,0.00039999,31]
[392374354,1761407549449,-179.11256939,0.00039999,31]
[392374355,1761407549459,-50000.0,0.0004,40]
[392374356,1761407549470,-8806.25354693,0.0004,120]
[392374357,1761407549479,-10048.0,0.0004,120]
[392374358,1761407549489,-50000.0,0.0004,12]
[392374359,1761407549500,-1000.424073,0.0004,120]
[392374360,1761407549509,-3661.0,0.0004,8]
[392374361,1761407549519,-6561.18349194,0.0004,60]
[392374362,1761407549528,-151.0,0.0004,30]
[392374363,1761407549538,-159.75591569,0.0004,30]
[392374364,1761407549547,-250.0,0.0004,120]
[392374365,1761407549558,-380.0,0.0004,60]
[392374366,1761407549567,-368.0,0.0004,60]
[392374367,1761407549577,-1511.9,0.0004,2]
[392374368,1761407549587,-217945.29288692,0.0004,2]
[392374369,1761407549600,-41988.0,0.0004,30]
[392374370,1761407549609,-158.02333789,0.0004,30]
[392374371,1761407549619,-234.84154684,0.0004,2]
[392374372,1761407549629,-394.32221007,0.0004,10]
[392374373,1761407549639,-202554.50708043,0.0004,120]
[392374374,1761407549648,-15844.40596043,0.0004,120]
[392374375,1761407549658,-175.91,0.0004,120]
[392374376,1761407549668,-12500.0,0.0004,120]
[392374377,1761407549680,-12500.0,0.0004,120]
[392374378,1761407549689,-12500.0,0.0004,120]
[392374379,1761407549699,-292.54214066,0.0004,120]
[392374380,1761407549711,-1003.0,0.0004,30]
[392374381,1761407549726,-476.4830027,0.0004,10]
[392374382,1761407549736,-15000.0,0.0004005,120]
[392374383,1761407549745,-239.84119403,0.00040123,31]
[392374384,1761407549755,-500.0,0.00040137,30]
[392374385,1761407549764,-1092.0,0.00040169,5]
[392374386,1761407549774,-231.28369723,0.00040185,30]
[392374387,1761407549783,-223.0315306,0.00040191,30]
[392374388,1761407549793,-1000.00000001,0.00040218,30]
[392374389,1761407549802,-1097.26705999,0.00040218,30]
[392374390,1761407549812,-215.0738,0.00040232,30]
[392374391,1761407549822,-11987.97,0.0004025,120]
[392374392,1761407549831,-12500.0,0.0004025,120]
[392374393,1761407549841,-12500.0,0.0004025,120]
[392374394,1761407549850,-150.0,0.00040258,30]
[392374395,1761407549860,-150.0,0.00040258,30]
[392374396,1761407549869,-242.08088921,0.00040258,30]
[392374397,1761407549878,-150.0,0.00040258,30]
[392374398,1761407549888,-1200.25516967,0.00040258,30]
[392374399,1761407549897,-359.46830575,0.00040258,30]
[392374400,1761407549907,-15000.0,0.0004026,120]
[392374401,1761407549916,-1511.9,0.00040273,2]
[392374402,1761407549926,-6670.76,0.00040278,2]
[392374403,1761407549936,-366.0,0.000403,60]
[392374404,1761407549946,-354.5,0.000403,60]
[392374405,1761407549956,-665.52,0.000403,120]
[392374406,1761407549966,-265.6,0.000403,120]
[392374407,1761407549977,-10000.0,0.000404,120]
[392374408,1761407549987,-1992.55,0.000404,120]
[392374409,1761407549998,-500.0,0.00040411,30]
[392374410,1761407550009,-15000.0,0.0004047,120]
[392374411,1761407550020,-1443.15557519,0.000405,120]
[392374412,1761407550029,-12500.0,0.000405,120]
[392374413,1761407550039,-500.0,0.00040511,7]
[392374414,1761407550049,-1511.9,0.00040547,2]
[392374415,1761407550059,-2500.0,0.00040623,14]
[392374416,1761407550071,-2500.0,0.00040632,14]
[392374417,1761407550081,-2500.0,0.00040641,14]
[392374418,1761407550090,-168.52,0.00040647,2]
[392374419,1761407550101,-2500.0,0.0004065,14]
[392374420,1761407550111,-1444.0,0.00040658,120]
[392374421,1761407550122,-2500.0,0.00040658,14]
[392374422,1761407550131,-2500.0,0.00040667,14]
[392374423,1761407550141,-2500.0,0.00040676,14]
[392374424,1761407550150,-15000.0,0.0004068,120]
[392374425,1761407550159,-500.0,0.0004068,120]
[392374426,1761407550169,-585.03,0.00040685,30]
[392374427,1761407550179,-12500.0,0.0004075,120]
[392374428,1761407550190,-388.0,0.000408,60]
[392374429,1761407550200,-1511.9,0.00040821,2]
[392374430,1761407550210,-2500.0,0.00040835,14]
[392374431,1761407550221,-2500.0,0.00040837,14]
[392374432,1761407550230,-2500.0,0.00040843,14]
[392374433,1761407550239,-2500.0,0.00040846,14]
[392374434,1761407550248,-2500.0,0.00040852,14]
[392374435,1761407550258,-2500.0,0.00040855,14]
[392374436,1761407550267,-2500.0,0.00040861,14]
[392374437,1761407550277,-2500.0,0.00040861,14]
[392374438,1761407550287,-2500.0,0.00040863,14]
[392374439,1761407550296,-2500.0,0.0004088,14]
[392374440,1761407550306,-15000.0,0.0004089,120]
[392374441,1761407550317,-5000.0,0.000409,120]
[392374442,1761407550327,-2054.0,0.00040962,2]
[392374443,1761407550339,-819.0,0.00040962,2]
[392374444,1761407550349,-572.0,0.00040962,2]
[392374445,1761407550359,-3414.0,0.00040962,2]
[392374446,1761407550369,-1592.0,0.00040962,2]
[392374447,1761407550379,-1312.0,0.00040962,2]
[392374448,1761407550388,-606.0,0.00040962,2]
[392374449,1761407550399,-818.0,0.00040962,2]
[392374450,1761407550409,-1270.0,0.00040962,2]
[392374451,1761407550419,-6583.0,0.00040962,2]
[392374452,1761407550428,-3488.0,0.00040962,2]
[392374453,1761407550438,-5988.926,0.00040962,2]
[392374454,1761407550448,-50000.0,0.00041,41]
[392374455,1761407550458,-298.40111556,0.00041,120]
[392374456,1761407550468,-289.92,0.00041,120]
[392374457,1761407550477,-478.9676684,0.00041,30]
[392374458,1761407550487,-350.0,0.00041,60]
[392374459,1761407550496,-4004.0,0.00041,2]
[392374460,1761407550506,-28708.65,0.00041,14]
[392374461,1761407550517,-12500.0,0.00041,120]
[392374462,1761407550526,-169.0,0.00041,90]
[392374463,1761407550536,-1003.0,0.00041,30]
[392374464,1761407550546,-152.0,0.00041058,10]
[392374465,1761407550555,-1511.9,0.00041095,2]
[392374466,1761407550565,-5800.0,0.00041095,14]
[392374467,1761407550575,-5800.0,0.00041095,14]
[392374468,1761407550584,-500.0,0.00041095,120]
[392374469,1761407550594,-500.0,0.00041095,120]
[392374470,1761407550604,-500.0,0.00041095,120]
[392374471,1761407550613,-500.0,0.00041095,120]
[392374472,1761407550623,-500.0,0.00041095,120]
[392374473,1761407550633,-500.0,0.00041095,120]
[392374474,1761407550643,-500.0,0.00041095,120]
[392374475,1761407550653,-500.0,0.00041095,120]
[392374476,1761407550663,-500.0,0.00041095,120]
[392374477,1761407550672,-377.15585552,0.00041095,120]
[392374478,1761407550682,-5388.77902445,0.00041095,14]
[392374479,1761407550692,-296.39769722,0.00041096,60]
[392374480,1761407550702,-50000.0,0.00041096,120]
[392374481,1761407550712,-30000.0,0.00041096,120]
[392374482,1761407550722,-300.0,0.00041096,120]
[392374483,1761407550732,-300.0,0.00041096,120]
[392374484,1761407550742,-410.165483,0.00041096,120]
[392374485,1761407550753,-5565.61852018,0.00041096,14]
[392374486,1761407550762,-181.04145175,0.000411,120]
[392374487,1761407550773,-650.0,0.000411,2]
[392374488,1761407550783,-2588.89,0.000411,120]
[392374489,1761407550794,-15000.0,0.000411,120]
[392374490,1761407550804,-150.13367062,0.000411,120]
[392374491,1761407550814,-150.13367062,0.000411,120]
[392374492,1761407550824,-150.13367062,0.000411,120]
[392374493,1761407550834,-150.13367062,0.000411,120]
[392374494,1761407550845,-150.13,0.000411,120]
[392374495,1761407550855,-159.23268096,0.000411,120]
[392374496,1761407550865,-159.23268096,0.000411,120]
[392374497,1761407550875,-159.23268096,0.000411,120]
[392374498,1761407550885,-159.23268096,0.000411,120]
[392374499,1761407550895,-159.23268096,0.000411,120]
[392374500,1761407550905,-159.23268096,0.000411,120]
[392374501,1761407550915,-159.23268096,0.000411,120]
[392374502,1761407550925,-159.23268096,0.000411,120]
[392374503,1761407550935,-159.23268096,0.000411,120]
[392374504,1761407550944,-159.23268096,0.000411,120]
[392374505,1761407550954,-159.23,0.000411,120]
[392374506,1761407550963,-154.90013377,0.000411,120]
[392374507,1761407550972,-154.9,0.000411,120]
[392374508,1761407550983,-500.0,0.000411,2]
[392374509,1761407550992,-12500.0,0.0004125,120]
[392374510,1761407551002,-15000.0,0.0004131,120]
[392374511,1761407551011,-1200.0,0.00041333,60]
[392374512,1761407551021,-500.0,0.00041333,60]
[392374513,1761407551030,-1511.9,0.00041369,2]
[392374514,1761407551040,-12500.0,0.000415,120]
[392374515,1761407551050,-15000.0,0.0004152,120]
[392374516,1761407551060,-1511.9,0.00041643,2]
[392374517,1761407551069,-14999.99,0.0004173,120]
[392374518,1761407551079,-12500.0,0.0004175,120]
[392374519,1761407551088,-1443.15557519,0.000418,120]
[392374520,1761407551098,-5044.91161,0.00041819,30]
[392374521,1761407551107,-250.0,0.00041842,120]
[392374522,1761407551116,-241.11,0.000419,7]
[392374523,1761407551126,-1511.9,0.00041917,2]
[392374524,1761407551135,-68868.75756101,0.00041999,2]
[392374525,1761407551145,-50000.0,0.00042,42]
[392374526,1761407551154,-1434.76257071,0.00042,120]
[392374527,1761407551164,-2000.0,0.00042,120]
[392374528,1761407551173,-12500.0,0.00042,120]
[392374529,1761407551183,-1003.0,0.00042,30]
[392374530,1761407551193,-500.0,0.00042013,120]
[392374531,1761407551202,-315.9,0.00042025,30]
[392374532,1761407551212,-200.0,0.00042047,120]
[392374533,1761407551221,-2760.32,0.0004209,2]
[392374534,1761407551231,-150.0,0.00042111,120]
[392374535,1761407551241,-150.0,0.00042111,120]
[392374536,1761407551251,-150.0,0.00042111,120]
[392374537,1761407551262,-150.0,0.00042111,120]
[392374538,1761407551271,-150.0,0.00042111,120]
[392374539,1761407551280,-150.0,0.00042111,120]
[392374540,1761407551291,-150.0,0.00042111,120]
[392374541,1761407551300,-150.0,0.00042111,120]
[392374542,1761407551310,-150.0,0.00042111,120]
[392374543,1761407551319,-150.0,0.00042111,120]
[392374544,1761407551329,-150.0,0.00042111,120]
[392374545,1761407551342,-150.0,0.00042111,120]
[392374546,1761407551352,-150.0,0.00042111,120]
[392374547,1761407551361,-500.0,0.00042155,60]
[392374548,1761407551371,-207.4,0.0004219,30]
[392374549,1761407551380,-1511.9,0.00042191,2]
[392374550,1761407551390,-491.89,0.00042224,120]
[392374551,1761407551400,-500.0,0.00042227,30]
[392374552,1761407551409,-12500.0,0.0004225,120]
[392374553,1761407551419,-407.75,0.00042299,30]
[392374554,1761407551430,-547.75,0.00042299,30]
[392374555,1761407551440,-150.0,0.00042299,30]
[392374556,1761407551450,-465.75,0.00042299,30]
[392374557,1761407551460,-151.93,0.00042299,30]
[392374558,1761407551470,-547.75,0.00042299,30]
[392374559,1761407551480,-547.75,0.00042299,30]
[392374560,1761407551490,-173.32,0.00042299,30]
[392374561,1761407551500,-4886.8,0.000423,7]
[392374562,1761407551509,-539.94,0.000423,7]
[392374563,1761407551519,-1200.0,0.00042429,60]
[392374564,1761407551528,-500.0,0.00042429,60]
[392374565,1761407551539,-202.54,0.00042463,2]
[392374566,1761407551548,-1511.9,0.00042465,2]
[392374567,1761407551558,-760.0,0.000425,120]
[392374568,1761407551568,-40887.41169328,0.000425,120]
[392374569,1761407551577,-12500.0,0.000425,120]
[392374570,1761407551587,-491.16,0.000426,7]
[392374571,1761407551596,-241.11,0.000426,7]
[392374572,1761407551607,-1511.9,0.00042739,2]
[392374573,1761407551616,-12500.0,0.0004275,120]
[392374574,1761407551627,-500.0,0.00042767,2]
[392374575,1761407551638,-69914.92046124,0.000428,120]
[392374576,1761407551649,-1775.86,0.000428,120]
[392374577,1761407551659,-206.93,0.000428,7]
[392374578,1761407551668,-9865.39,0.000428,7]
[392374579,1761407551678,-7493.66,0.000428,7]
[392374580,1761407551688,-491.16,0.000428,7]
[392374581,1761407551698,-231.17,0.000428,7]
[392374582,1761407551707,-4886.8,0.000428,7]
[392374583,1761407551717,-2248418.0,0.000428,120]
[392374584,1761407551726,-241.11,0.000428,7]
[392374585,1761407551735,-92574.20582199,0.000428,30]
[392374586,1761407551746,-800.05083391,0.0004288,120]
[392374587,1761407551757,-682.07,0.00042886,120]
[392374588,1761407551767,-27946.36656357,0.000429,120]
[392374589,1761407551777,-7086.6069158,0.000429,120]
[392374590,1761407551788,-5000.0,0.000429,120]
[392374591,1761407551798,-150.0,0.0004293,120]
[392374592,1761407551808,-152.0,0.00042933,11]
[392374593,1761407551819,-237.47378486,0.00042959,2]
[392374594,1761407551829,-696.68,0.00042967,30]
[392374595,1761407551839,-950.92,0.00042967,30]
[392374596,1761407551849,-696.68,0.00042967,30]
[392374597,1761407551859,-696.68,0.00042967,30]
[392374598,1761407551869,-696.68,0.00042967,30]
[392374599,1761407552092,-696.68,0.00042967,30]
[392374600,1761407552104,-294.98,0.00042967,30]
[392374601,1761407552115,-50000.0,0.00043,43]
[392374602,1761407552126,-250.0,0.00043,120]
[392374603,1761407552135,-400.0,0.00043,5]
[392374604,1761407552146,-460.13612514,0.00043,120]
[392374605,1761407552156,-250.0,0.00043,120]
[392374606,1761407552165,-20541.19172664,0.00043,60]
[392374607,1761407552174,-7028.95535637,0.00043,120]
[392374608,1761407552185,-1003.0,0.00043,30]
[392374609,1761407552195,-12499.99,0.00043,120]
[392374610,1761407552205,-1511.9,0.00043013,2]
[392374611,1761407552215,-435.69639637,0.000431,120]
[392374612,1761407552226,-169.0,0.00043151,90]
[392374613,1761407552235,-500.0,0.00043251,60]
[392374614,1761407552245,-1511.9,0.00043287,2]
[392374615,1761407552254,-725.43180104,0.000433,120]
[392374616,1761407552264,-4886.8,0.000433,7]
[392374617,1761407552274,-2768.58808296,0.0004334,120]
[392374618,1761407552283,-500.0,0.00043347,120]
[392374619,1761407552293,-200.0,0.00043388,120]
[392374620,1761407552302,-333.06,0.000434,7]
[392374621,1761407552312,-1228.11,0.000435,7]
[392374622,1761407552321,-340.28,0.000435,7]
[392374623,1761407552333,-5015.99,0.000435,120]
[392374624,1761407552343,-2565.0,0.000435,120]
[392374625,1761407552352,-5383.0,0.000435,120]
[392374626,1761407552362,-1200.0,0.00043525,60]
[392374627,1761407552373,-500.0,0.00043525,60]
[392374628,1761407552383,-1299.43463122,0.0004356,120]
[392374629,1761407552393,-200.0,0.0004356,30]
[392374630,1761407552402,-1511.9,0.00043561,2]
[392374631,1761407552411,-300.0,0.0004357,3]
[392374632,1761407552420,-297.9,0.000436,120]
[392374633,1761407552429,-1412.52475317,0.000436,120]
[392374634,1761407552439,-3999.999,0.000436,120]
[392374635,1761407552448,-719.0,0.00043664,30]
[392374636,1761407552457,-200.0,0.00043748,31]
[392374637,1761407552467,-1000.0,0.000438,30]
[392374638,1761407552478,-150.64399475,0.000438,120]
[392374639,1761407552487,-4260.79646574,0.000438,120]
[392374640,1761407552496,-500.0,0.00043833,30]
[392374641,1761407552505,-790.73061942,0.00043834,60]
[392374642,1761407552516,-1511.9,0.00043835,2]
[392374643,1761407552527,-500.0,0.00043836,29]
[392374644,1761407552538,-800.0,0.0004388,120]
[392374645,1761407552547,-8000.0,0.00043885,120]
[392374646,1761407552556,-6908.66705465,0.000439,30]
[392374647,1761407552565,-875.52,0.0004393,30]
[392374648,1761407552575,-2051.0,0.00043962,2]
[392374649,1761407552586,-819.0,0.00043962,2]
[392374650,1761407552596,-572.0,0.00043962,2]
[392374651,1761407552607,-2357.994,0.00043962,2]
[392374652,1761407552618,-1312.0,0.00043962,2]
[392374653,1761407552627,-818.0,0.00043962,2]
[392374654,1761407552638,-1270.0,0.00043962,2]
[392374655,1761407552649,-823.299,0.00043962,2]
[392374656,1761407552659,-3488.0,0.00043962,2]
[392374657,1761407552669,-482.0,0.00043971,120]
[392374658,1761407552678,-1078.94163042,0.00043987,120]
[392374659,1761407552687,-266.1007027,0.00043999,120]
[392374660,1761407552697,-50000.0,0.00044,44]
[392374661,1761407552707,-227.23,0.00044,7]
[392374662,1761407552716,-441.92,0.00044,7]
[392374663,1761407552725,-381.26,0.00044,7]
[392374664,1761407552734,-297.67,0.00044,7]
[392374665,1761407552743,-297.67,0.00044,7]
[392374666,1761407552753,-297.67,0.00044,7]
[392374667,1761407552762,-297.67,0.00044,7]
[392374668,1761407552772,-380.96,0.00044,7]
[392374669,1761407552783,-303.7,0.00044,7]
[392374670,1761407552794,-4952.91,0.00044,7]
[392374671,1761407552803,-4952.91,0.00044,7]
[392374672,1761407552813,-4952.91,0.00044,7]
[392374673,1761407552824,-4952.91,0.00044,7]
[392374674,1761407552833,-4952.91,0.00044,7]
[392374675,1761407552843,-649.54,0.00044,7]
[392374676,1761407552852,-1228.11,0.00044,7]
[392374677,1761407552861,-1228.11,0.00044,7]
[392374678,1761407552871,-1228.11,0.00044,7]
[392374679,1761407552880,-1228.11,0.00044,7]
[392374680,1761407552889,-340.28,0.00044,7]
[392374681,1761407552899,-340.28,0.00044,7]
[392374682,1761407552908,-340.28,0.00044,7]
[392374683,1761407552918,-340.28,0.00044,7]
[392374684,1761407552928,-206.93,0.00044,7]
[392374685,1761407552937,-206.93,0.00044,7]
[392374686,1761407552946,-206.93,0.00044,7]
[392374687,1761407552955,-206.93,0.00044,7]
[392374688,1761407552965,-9865.39,0.00044,7]
[392374689,1761407552975,-9865.39,0.00044,7]
[392374690,1761407552984,-9865.39,0.00044,7]
[392374691,1761407552993,-9865.39,0.00044,7]
[392374692,1761407553002,-7493.66,0.00044,7]
[392374693,1761407553012,-7493.66,0.00044,7]
[392374694,1761407553022,-7493.66,0.00044,7]
[392374695,1761407553031,-7493.66,0.00044,7]
[392374696,1761407553041,-491.16,0.00044,7]
[392374697,1761407553050,-491.16,0.00044,7]
[392374698,1761407553060,-491.16,0.00044,7]
[392374699,1761407553070,-4886.8,0.00044,7]
[392374700,1761407553079,-4886.8,0.00044,7]
[392374701,1761407553089,-241.11,0.00044,7]
[392374702,1761407553099,-241.11,0.00044,7]
[392374703,1761407553108,-445.22964186,0.00044,120]
[392374704,1761407553117,-498.23414884,0.00044,120]
[392374705,1761407553127,-200.0,0.00044,120]
[392374706,1761407553136,-2000.0,0.00044,120]
[392374707,1761407553145,-150.0,0.00044,20]
[392374708,1761407553155,-1000.0,0.00044,15]
[392374709,1761407553164,-1099.93386758,0.00044,2]
[392374710,1761407553174,-286.49,0.00044,30]
[392374711,1761407553183,-4000.0,0.00044,30]
[392374712,1761407553192,-4000.0,0.00044,30]
[392374713,1761407553201,-4000.0,0.00044,30]
[392374714,1761407553210,-4000.0,0.00044,30]
[392374715,1761407553219,-4000.0,0.00044,30]
[392374716,1761407553228,-4000.0,0.00044,30]
[392374717,1761407553237,-4100.0,0.00044,30]
[392374718,1761407553247,-250.0,0.00044,120]
[392374719,1761407553256,-250.0,0.00044,120]
[392374720,1761407553265,-508.5773442,0.00044,30]
[392374721,1761407553275,-242.69,0.00044,120]
[392374722,1761407553285,-1099.999998,0.00044,2]
[392374723,1761407553294,-4000.0,0.00044,30]
[392374724,1761407553303,-4000.0,0.00044,30]
[392374725,1761407553313,-4321.9219,0.00044,30]
[392374726,1761407553322,-3039.93041199,0.00044,120]
[392374727,1761407553332,-250.0,0.00044,30]
[392374728,1761407553341,-250.0,0.00044,30]
[392374729,1761407553350,-190.7,0.00044,30]
[392374730,1761407553359,-162.0,0.00044,120]
[392374731,1761407553368,-152.0,0.00044,120]
[392374732,1761407553378,-500.0,0.00044107,120]
[392374733,1761407553387,-1511.9,0.00044109,2]
[392374734,1761407553397,-150.0,0.00044109,120]
[392374735,1761407553406,-719.0,0.00044114,30]
[392374736,1761407553415,-1859.97,0.00044178,30]
[392374737,1761407553425,-948.63346,0.000442,120]
[392374738,1761407553434,-10000.0,0.000442,120]
[392374739,1761407553444,-297.67,0.000443,7]
[392374740,1761407553453,-500.0,0.00044347,60]
[392374741,1761407553463,-500.0,0.00044381,120]
[392374742,1761407553474,-1511.9,0.00044383,2]
[392374743,1761407553483,-600.0,0.000444,15]
[392374744,1761407553493,-5125.4108817,0.00044444,120]
[392374745,1761407553502,-1355.03887074,0.000445,120]
[392374746,1761407553512,-238.2291195,0.000445,30]
[392374747,1761407553521,-250.0,0.000445,30]
[392374748,1761407553531,-250.0,0.000445,30]
[392374749,1761407553543,-29310.83882395,0.000445,120]
[392374750,1761407553552,-150.0,0.00044532,120]
[392374751,1761407553562,-719.0,0.00044564,30]
[392374752,1761407553572,-1200.0,0.00044621,60]
[392374753,1761407553582,-500.0,0.00044621,60]
[392374754,1761407553592,-500.0,0.00044655,120]
[392374755,1761407553603,-1512.09691735,0.00044657,2]
[392374756,1761407553613,-500.0,0.0004468,120]
[392374757,1761407553623,-820536.83,0.0004469,120]
[392374758,1761407553633,-761.24434559,0.0004469,30]
[392374759,1761407553643,-200.0,0.0004473,120]
[392374760,1761407553653,-24982.72479398,0.000448,120]